Cogmind - Beta 13 @@@ ROGUE MODE // 2024.03.01 @ 08:00:16 Player: ChromeKnight Result: Self-destructed Performance ------------- Evolutions (2) 1000 Regions Visited (4) 800 Robots Destroyed (13) 65 Value Destroyed (410) 410 Prototype IDs (1) 20 Alien Tech Used (0) 0 Bonus (254) 254 TOTAL SCORE: 2549 Bonus ------- Follower Combat Kills 254 Cogmind --------- Core Integrity 52/550 Matter 300/300 Energy 99/100 System Corruption 1% Temperature Cool (0) Movement Core (50) Location -8/Materials Parts ------- > --- POWER (1) -------- (None) > --- PROPULSION (3) --- (None) > --- UTILITY (5) ------ Improved Signal Interpreter > --- WEAPON (2) ------- (None) > --- INVENTORY (5) ---- Light Deuterium Engine Light Deuterium Engine Faulty Experimental Sensor Array Peak State ------------ > --- POWER ------------ Light Angular Momentum Engine > --- PROPULSION ------- Carbon-fiber Leg Carbon-fiber Leg > --- UTILITY ---------- Experimental Sensor Array Scrap Shield > --- WEAPON ----------- Heavy Assault Rifle Heavy Assault Rifle > --- INVENTORY -------- Improved Weapon Shielding Beamcaster Shrapnel Trap [Rating: 28] Favorites ----------- Power Light Nuclear Core Engine Light Angular Momentum Engine Power Core Light Nuclear Core Propulsion Light Treads Treads Light Treads Leg Carbon-fiber Leg Utility Small Storage Unit Device Improved Heat Sink Storage Small Storage Unit Processor Improved Signal Interpreter Protection Scrap Shield Weapon Heavy Assault Rifle Energy Gun Small Laser Ballistic Gun Heavy Assault Rifle Build | -11 -10 -10 -10 -8 ------- Run | Yrd Mat Min Sub Mat Slots Evolved 4 | . . . . 4 Power . | . . . . . Propulsion 1 | . . . . 1 Utility 3 | . . . . 3 Weapon . | . . . . . Parts Attached 30 | 6 1 10 7 6 Power 3 | 1 . 1 1 . Engine 2 | 1 . . 1 . Core 1 | . . 1 . . Reactor . | . . . . . Propulsion 9 | 2 . 3 4 . Treads 6 | 2 . 3 1 . Leg 3 | . . . 3 . Wheel . | . . . . . Hover . | . . . . . Flight . | . . . . . Utility 10 | 1 1 2 2 4 Device 5 | . 1 2 . 2 Storage 1 | 1 . . . . Processor 1 | . . . . 1 Hackware . | . . . . . Protection 3 | . . . 2 1 Artifact . | . . . . . Weapon 8 | 2 . 4 . 2 Energy Gun 6 | 2 . 2 . 2 Energy Cannon . | . . . . . Ballistic Gun 2 | . . 2 . . Ballistic Cannon . | . . . . . Launcher . | . . . . . Special Weapon . | . . . . . Impact Weapon . | . . . . . Slashing Weapon . | . . . . . Piercing Weapon . | . . . . . Special Melee Weapon . | . . . . . Unidentified Prototypes 1 | . . . . 1 Parts Lost 12 | . . 3 . 9 Power 1 | . . . . 1 Propulsion 4 | . . 2 . 2 Utility 3 | . . . . 3 Weapon 4 | . . 1 . 3 Highest Loss Streak 8 | . . 3 . 8 To Critical Strikes . | . . . . . Average Slot Usage (%) 88 | . 92 99 86 50 Engine 6 | . 14 3 9 7 Core 6 | . . 10 4 . Treads 18 | . 28 28 9 . Leg 7 | . . . 18 16 Device 7 | . 6 14 . 2 Storage 8 | . 14 14 1 . Protection 5 | . . . 13 8 Energy Gun 6 | . 28 7 . 4 Ballistic Gun 20 | . . 20 28 8 Naked Turns . | . . . . . Heaviest Build 35 | 12 13 17 33 35 Greatest Support 40 | 40 40 40 40 30 Greatest Overweight (x) 2 | . . . 2 1 Average Overweight (x) . | . . . . . Largest Inventory Capacity 8 | 8 8 8 8 5 Average Capacity 6 | 6 8 8 5 5 Most Carried 8 | . 4 8 8 5 Average Carried 5 | . . 7 5 4 Final Capacity 8 | 8 8 8 5 5 Final Carried 8 | . 4 8 5 3 Class Distribution -------------------- 48% | Scavenger-Mutant 29% | Subdweller-Mutant 22% | Mutant Dominant Class ---------------- Mutant | -10/Materials Scavenger-Mutant | -10/Mines Subdweller-Mutant | -10/Subcaves Scavenger-Mutant | -8/Materials Resources | -11 -10 -10 -10 -8 ----------- Run | Yrd Mat Min Sub Mat Matter Collected 571 | 251 19 90 118 93 Remotely . | . . . . . Salvage Created 485 | . 89 155 115 126 Parts 36 | . 5 11 7 13 Haulers Intercepted . | . . . . . Recyclers Shooed 1 | . . 1 . . Parts Field Recycled . | . . . . . Retrieved Matter . | . . . . . Parts Self-Destructed 10 | . . . 10 . Prevented . | . . . . . Kills | -11 -10 -10 -10 -8 ------- Run | Yrd Mat Min Sub Mat Combat Hostiles Destroyed 12 | . 2 5 3 2 Guns 12 | . 2 5 3 2 Classes Destroyed 5 | . 1 2 1 1 Watcher 1 | . . . . 1 Swarmer 4 | . . 3 1 . Grunt 4 | . 2 . . 2 Sentry 2 | . . 2 . . Subdweller 2 | . . . 2 . Best Kill Streak 3 | . 2 3 1 2 Combat Bots Only 3 | . 2 3 1 1 Max Kills in Single Turn 1 | . 1 1 1 1 Gunslinging . | . . . . . Exploded . | . . . . . Melee . | . . . . . Uniques/NPCs Destroyed . | . . . . . Combat | -11 -10 -10 -10 -8 -------- Run | Yrd Mat Min Sub Mat Hostile Shots Fired 192 | . 42 51 34 65 Missed 47 | . 12 7 10 18 Damage Taken 2459 | . 363 540 426 1130 Core 723 | . 34 138 53 498 Absorbed by Shields . | . . . . . Redirected to Shielding 134 | . . . 24 110 Core Remaining (%) 55 | 100 . . 10 . Volleys Fired 51 | . 7 17 8 19 Largest 2 | . 2 2 2 2 Hottest 80 | . 80 80 46 75 Shots Fired 94 | . 14 34 16 30 Gun 94 | . 14 34 16 30 Cannon . | . . . . . Launcher . | . . . . . Special . | . . . . . Kinetic 29 | . . . 16 13 Thermal 54 | . 14 34 . 6 Explosive . | . . . . . Electromagnetic 11 | . . . . 11 Robot Hit Streak 24 | . 6 24 3 8 Robot Miss Streak 5 | . 1 3 2 5 Penetration Max . | . . . . . Secondary Targets . | . . . . . Shots Hit Robots 63 | . 11 26 10 16 Core Hits 24 | . 5 7 3 9 Critical Kills . | . . . . . Critical Parts Destroyed . | . . . . . Critical Strikes . | . . . . . Melee Attacks . | . . . . . Impact . | . . . . . Slashing . | . . . . . Piercing . | . . . . . Sneak Attacks . | . . . . . Combat Hostiles . | . . . . . Follow-up Attacks . | . . . . . Damage Inflicted 920 | . 120 291 162 347 Guns 873 | . 120 291 162 300 Cannons . | . . . . . Explosions . | . . . . . Melee . | . . . . . Ramming 47 | . . . . 47 Kinetic 309 | . . . 162 147 Thermal 431 | . 120 291 . 20 Explosive . | . . . . . Electromagnetic 133 | . . . . 133 Impact . | . . . . . Slashing . | . . . . . Piercing . | . . . . . Highest Corruption 1 | . . . . 1 Average Corruption 1 | . . . . 1 Corruption Purged . | . . . . . Corruption Blocked . | . . . . . Overload Shots . | . . . . . Overflow Damage . | . . . . . Projectiles . | . . . . . Explosions . | . . . . . Melee . | . . . . . Knockbacks . | . . . . . Impact . | . . . . . Kinetic . | . . . . . Secondary . | . . . . . Self-Inflicted Damage 13 | . . . . 13 Shots . | . . . . . Rammed 10 | . . . . 10 Targets Rammed 13 | . . . . 13 Kicked 3 | . . . . 3 Crushed . | . . . . . Highest Temperature 186 | . 186 29 . 72 Average Temperature 50 | . 101 8 . 26 Received Heat Transfer 549 | . 204 135 111 99 Siege Activations . | . . . . . Robots Corrupted . | . . . . . Combat Hostiles . | . . . . . Parts Fried . | . . . . . Impact Corruptions . | . . . . . Robots Melted . | . . . . . Combat Hostiles . | . . . . . Parts Melted 1 | . 1 . . . Heat Transferred 962 | . 275 650 . 37 Parts Sabotaged . | . . . . . Parts Stolen . | . . . . . Parts Stripped . | . . . . . Power Chain Reactions . | . . . . . Alert | -11 -10 -10 -10 -8 ------- Run | Yrd Mat Min Sub Mat Peak Influence 170 | . 58 170 . 160 Initial 23 | . . 22 . 23 Average 34 | . 33 26 . 76 Maximum Alert Level . | . . . . . Low Security (%) 100 | 100 100 100 . 100 Level 1 . | . . . . . Level 2 . | . . . . . Level 3 . | . . . . . Level 4 . | . . . . . Level 5 . | . . . . . High Security . | . . . . . Max Security . | . . . . . Squads Dispatched 10 | . 2 . . 8 Investigation 3 | . 2 . . 1 Extermination . | . . . . . Reinforcement 5 | . . . . 5 Assault . | . . . . . Garrison 2 | . . . . 2 Intercept . | . . . . . Searches Triggered . | . . . . . Construction Impeded 1 | . . . . 1 Haulers Reinforced . | . . . . . Active Scanning Responses . | . . . . . Cargo Convoy Interrupts . | . . . . . Stealth | -11 -10 -10 -10 -8 --------- Run | Yrd Mat Min Sub Mat Distress Signals . | . . . . . Communications Jammed . | . . . . . Distress Signals . | . . . . . Times Spotted 44 | . 6 6 20 12 Peak Tracking Total 7 | . 4 3 7 5 Tactical Retreats 4 | . . . 1 3 Traps | -11 -10 -10 -10 -8 ------- Run | Yrd Mat Min Sub Mat Traps Triggered 4 | . . 1 1 2 Indirectly . | . . . . . Trap Hack Attempts . | . . . . . Triggered . | . . . . . Disarmed . | . . . . . Reprogrammed . | . . . . . Reused 1 | . . . . 1 Traps Extracted . | . . . . . Installed 1 | . . . . 1 Triggered 1 | . . . . 1 Most Traps Carried 1 | . . . 1 1 Machines | -11 -10 -10 -10 -8 ---------- Run | Yrd Mat Min Sub Mat Machines Disabled 1 | . . . 1 . Max in Single Turn . | . . . . . Machines Repaired . | . . . . . Machines Dismantled . | . . . . . Machines Sabotaged . | . . . . . Overloaded Fab Kills . | . . . . . Hacking | -11 -10 -10 -10 -8 --------- Run | Yrd Mat Min Sub Mat Machines Accessed 3 | . 2 1 . . Terminals 2 | . 2 . . . Fabricators . | . . . . . Repair Stations . | . . . . . Recycling Units . | . . . . . Scanalyzers . | . . . . . Garrison Access . | . . . . . Total Hacks 9 | . 8 1 . . Successful 2 | . 1 1 . . Failed 7 | . 7 . . . Catastrophic 1 | . 1 . . . Database Lockouts . | . . . . . Manual 8 | . 8 . . . Terminals 8 | . 8 . . . Fabricators . | . . . . . Repair Stations . | . . . . . Recycling Units . | . . . . . Scanalyzers . | . . . . . Garrison Access . | . . . . . Terminal Hacks 2 | . 1 1 . . Open Door 1 | . . 1 . . Branch Access Points 1 | . 1 . . . Fabricator Hacks . | . . . . . Repair Station Hacks . | . . . . . Recycling Unit Hacks . | . . . . . Scanalyzer . | . . . . . Garrison Access Hacks . | . . . . . Unauthorized Hacks . | . . . . . Terminals . | . . . . . Fabricators . | . . . . . Repair Stations . | . . . . . Recycling Units . | . . . . . Scanalyzers . | . . . . . Garrison Access . | . . . . . Data Cores Recovered . | . . . . . Used . | . . . . . Hacking Detections 2 | . 2 . . . Full Trace Events 2 | . 2 . . . Feedback Events . | . . . . . Feedback Blocked . | . . . . . Robot Schematics Acquired . | . . . . . Robots Built . | . . . . . Authchips . | . . . . . Time . | . . . . . Total Robot Build Rating . | . . . . . Part Schematics Acquired . | . . . . . Parts Built . | . . . . . Authchips . | . . . . . Time . | . . . . . Total Part Build Rating . | . . . . . Parts Repaired . | . . . . . Time . | . . . . . Parts Recycled . | . . . . . Recycled Matter . | . . . . . Retrieved Matter . | . . . . . Retrieved Components . | . . . . . Parts Scanalyzed . | . . . . . Part Schematics Acquired . | . . . . . Parts Damaged . | . . . . . Bothacking | -11 -10 -10 -10 -8 ------------ Run | Yrd Mat Min Sub Mat Used RIF Installer . | . . . . . Robots Hacked . | . . . . . Non-combat . | . . . . . Combat . | . . . . . Robot Hacks Applied . | . . . . . Relay Couplers Released . | . . . . . Fabnet Peak Effective % . | . . . . . Robots Rewired . | . . . . . Allies Hacked . | . . . . . Hacks Repelled . | . . . . . Allies | -11 -10 -10 -10 -8 -------- Run | Yrd Mat Min Sub Mat Total Allies 6 | . . 6 . . Largest Group 6 | . . 6 6 . Highest-Rated Group 117 | . . 113 117 . Highest-Rated Ally 31 | . . 31 31 . Total Orders . | . . . . . Ally Attacks 52 | . . 3 49 . Total Damage 716 | . . 65 651 . Kills 10 | . . 2 8 . Allies Corrupted . | . . . . . Allies Melted . | . . . . . Intel | -11 -10 -10 -10 -8 ------- Run | Yrd Mat Min Sub Mat Robot Analysis Total . | . . . . . Derelict Logs Recovered 3 | . . 1 2 . Drone Launches . | . . . . . Drone Recoveries . | . . . . . Exploration | -11 -10 -10 -10 -8 ------------- Run | Yrd Mat Min Sub Mat Turns Passed 2756 | 65 173 1329 869 320 Spaces Moved 1483 | 43 86 722 432 200 Core 41 | 11 . . . 30 Treads 993 | 32 86 722 153 . Legs 449 | . . . 279 170 Wheels . | . . . . . Hover . | . . . . . Flight . | . . . . . Fastest Speed 50 | 50 160 160 160 50 Average Speed 159 | 131 160 160 179 118 Slowest Speed 260 | 160 160 160 260 190 Overloaded Moves . | . . . . . Propulsion Burnouts . | . . . . . Robots Hopped . | . . . . . Cave-ins Triggered . | . . . . . Exploration Rate (%) 38 | 3 32 99 37 21 Regions Visited 4 Branch Regions 2 Pre-discovered Areas 3 | . . . 3 . Known Exits Taken 1 | . 1 . . . Unknown Exits Taken 3 | 1 . 1 1 . Scrap Searched 4 | . . 3 1 . Spaces Dug . | . . . . . Terrain Destroyed . | . . . . . Melee . | . . . . . Projectile . | . . . . . AOE . | . . . . . Terrain Rammed . | . . . . . Walls Destroyed . | . . . . . Machines Disabled . | . . . . . Actions | -11 -10 -10 -10 -8 --------- Run | Yrd Mat Min Sub Mat Total 1789 | 48 107 864 516 254 Wait 162 | . 10 99 48 5 Move 1479 | 42 85 721 431 200 Hop . | . . . . . Pick Up 26 | . 4 10 8 4 Fast Attach 13 | 6 1 2 2 2 Attach 11 | . . 5 2 4 Detach 1 | . . . . 1 Swap 6 | . . 3 3 . Drop 24 | . . 7 13 4 Fire 51 | . 7 17 8 19 Melee . | . . . . . Ram 10 | . . . . 10 Kick 3 | . . . . 3 Crush . | . . . . . Escape Stasis . | . . . . . Rewire . | . . . . . Trap 1 | . . . . 1 Miscellaneous 2 | . . . 1 1 Route ------- -11/Scrapyard -10/Materials (discovered 2 exits: *Min x2) -10/Mines (discovered 3 exits: [*Mat x2] / [*Sub]) -10/Subcaves (discovered 2 exits: [*Mat] / Rec) -8/Materials History --------- Turn | Location | Event 4 | -11/Scrapyard | Discovered new exit (range 14) 66 | -11/Scrapyard | Entered Materials 193 | -10/Materials | Discovered new exit (range 13) 212 | -10/Materials | Identified exit to Mines 239 | -10/Materials | Entered Mines 339 | -10/Mines | Build established: Mutant 345 | -10/Mines | Lost 3 parts (2n1w) 444 | -10/Mines | Core integrity fell below 50% 468 | -10/Mines | Discovered new exit (range 5) 471 | -10/Mines | Escorted by a lone wolf Derelict 585 | -10/Mines | Met a Derelict who couldn't figure out how to use a Trap Extractor 772 | -10/Mines | Assisted by bots powering up and referring to "LRC-V3" 834 | -10/Mines | Build established: Scavenger-Mutant 957 | -10/Mines | Discovered new exit (range 8) 966 | -10/Mines | Found a damaged Exp. Sensor Array with a note attached 970 | -10/Mines | Found Prototype Device 1367 | -10/Mines | Discovered new exit (range 4) 1568 | -10/Mines | Entered Subcaves 1568 | -10/Subcaves | Accompanied by 6 allies 1569 | -10/Subcaves | Identified exit to Recycling 1573 | -10/Subcaves | Led the pair of lost Derelicts to an unsafe place 1797 | -10/Subcaves | Ambushed by swarm of Subdwellers 1804 | -10/Subcaves | Core integrity fell below 20% 1859 | -10/Subcaves | Lost 4 allies 1932 | -10/Subcaves | Build established: Subdweller-Mutant 2234 | -10/Subcaves | Discovered new exit (range 11) 2238 | -10/Subcaves | Learned location of Zion (-6) 2258 | -10/Subcaves | Met a Zionite searching for "candidates" 2412 | -10/Subcaves | Lost 3 allies 2437 | -10/Subcaves | Entered Materials 2437 | -8/Materials | Evolved 4 slots: Propulsion x1, Utility x3 2450 | -8/Materials | Identified Exp. Sensor Array 2630 | -8/Materials | Garrison activated, responded to threat 2739 | -8/Materials | Core integrity fell below 50% 2753 | -8/Materials | Core integrity fell below 20% 2757 | -8/Materials | Self-destructed Last Messages --------------- 02713_ Acquired 10 matter. 02719_ Seismic Detector destroyed. 02719_ Knocked back. 02722_ Carbon-fiber Leg destroyed. 02726_ ALERT: Hostiles spotted, dispatching reinforcements to Terminal M012. 02726_ Slammed into K-01 Serf. 02727_ Dropped Shrapnel Trap. 02728_ Installed Shrapnel Trap. 02731_ Slammed into X-57 Shotgunner. 02734_ Slug penetrates Wall. 02738_ K-01 Serf collects debris. 02738_ Beamcaster destroyed. 02738_ Slammed into X-57 Shotgunner. 02741_ Penetrated by Slug. 02743_ Slammed into K-01 Serf. 02747_ Slammed into H-61 Shepherd. 02747_ Knocked back. 02748_ Slammed into H-61 Shepherd. 02752_ Knocked back. Map ----- +----------------------------------------------------+ | #### #####+########### #??###+###?????? | | ???#%#?# #??????# #??? ??????? | | ???#!#?# #??????# #? !????? | | ???# #?# """ #??#####+## #???? | | ???# #?# """ #??# ! # #???? | | ???# #?# """ #??# # """ #???? | | ???# #?# #??# # """ #???? | | ???# #?########??# #[[ """ #???? | | ???# #???????????# #[ #???? | | ???#*#???????????# #######???#???? | | ???#!#######################??????????? | | ???# =% = ?????????? | | ???#+######## #????????????? | | ??? ??????# #????????????? | | ??? ??????# #????????????? | | ?? """ ?????# ########## #????????????? | | ?? """ ?????# ########## #????????????? | | ?# """ ????# # """ #?T #????????????? | | ?# ????# # """ #?# ###??????????? | | ?############ # """ #?# #??????????? | | %/ #?# #??????????? | | ######%# #?# #??????????? | | ????????????# # #?# #########??? | | ????????????# ########## %## #??? | | ??????????# #^#???##### # """ #??? | | ??????????# " ""###""## @ # """ #??? | | ??????????# %%%%h%x%H + """ #??? | | ??????????##"""####;### # #??? | | ??????????????????###?# # #??? | | ??????????????????????##############??? | | ??????????????????????????????????????? | | ??????????????????????????????????????? | | ??????????????????????????????????????? | | ??????????????????????????????????????? | | ??????????????????????????????????????? | | ??????????????????????????????????????? | | ??????????????????????????????????????? | | ??????????????????????????????????????? | | ??????????????????????????????????????? | | ??????????????????????????????????????? | | ??????????????????????????????????????? | | ??????????????????????????????????????? | | ??????????????????????????????????????? | | ??????????????????????????????????????? | | ??????????????????????????????????????? | | ??????????????????????????????????????? | | ??????????????????????????????????????? | | ??????????????????????????????????????? | | ??????????????????????????????????????? | | ??????????????????????????????????????? | +----------------------------------------------------+ Best States ------------- Heat Dissipation 39 Energy Generation 18 Energy Capacity 250 Matter Stores 300 Matter Capacity 300 Sight Range 16 Terrain Scan Density 10 Armor Coverage 800 Propulsion Shielding 33 Weapon Shielding 66 Evasion (%) 55 Recoil Reduction 2 Item Schematics ----------------- None Robot Schematics ------------------ None Fabricated ------------ Nothing Alien Tech Used ----------------- None Achievements -------------- None Challenges ------------ None Game ------ Seed RocketZhirovClaymores Manual? 0 Play Time 00:17:47 Cumulative 434.3 hours Start 2024.02.29 @ 21:02:27 End 2024.03.01 @ 08:00:16 Sessions 3 Manual Loads 0 Difficulty Rogue Special Mode None Game No. 755 Rogue 600 Adventurer 148 Explorer 7 Win Type - Total 19 Types 16/0/2/1/0/0/0/0/0 Lore% 76 Gallery% 87 Achievement% 73 Wizard Run 0 Options --------- Layout 1 ASCII 0 Keyboard 0 Movement Numpad Keybinds 0 Fullscreen 2 Font 24/Smallcaps Map View 50x35 Zoom Use 0% Tactical HUD 1 Map Filters NONE Filters NONE Steam 1 RUN: 2fa297e5-f36d-4ca0-a973-d6d28aa3a490